Cogmind - Beta 16.1 @@@ ROGUE MODE // 2026.02.13 @ 17:31:13 // Winter2019/RPGLIKE Player: Erik Result: Destroyed by G-34 Mercenary with Small Laser Performance ------------- Evolutions (0) 0 Regions Visited (1) 200 Robots Destroyed (54) 270 Value Destroyed (651) 651 Prototype IDs (3) 60 Alien Tech Used (0) 0 Bonus (0) 0 TOTAL SCORE: 1181 Bonus ------- None Cogmind --------- Core Integrity 0/750 Matter 285/300 Energy 125/125 System Corruption 0% Temperature Cool (6) Movement Flying (40) Location -10/Materials Parts ------- > --- POWER (1) -------- Light Ion Engine > --- PROPULSION (1) --- Flight Unit > --- UTILITY (2) ------ Weapon Shielding > --- WEAPON (2) ------- Light Assault Rifle Datajack > --- INVENTORY (0) ---- (None) Peak State ------------ > --- POWER ------------ Light Ion Engine > --- PROPULSION ------- Flight Unit > --- UTILITY ---------- Weapon Shielding > --- WEAPON ----------- Light Assault Rifle Mining Laser > --- INVENTORY -------- (None) [Rating: 5] Favorites ----------- Power Light Ion Engine Engine Light Ion Engine Propulsion Flight Unit Wheel Wheel Flight Unit Flight Unit Utility Weapon Shielding Device Seismic Detector Protection Weapon Shielding Weapon Light Assault Rifle Energy Gun Small Laser Ballistic Gun Light Assault Rifle Special Weapon Mining Laser Special Melee Weapon Datajack Build | -11 -10 ------- Run | Yrd Mat Slots Evolved 2 | . 2 Power . | . . Propulsion . | . . Utility 1 | . 1 Weapon 1 | . 1 Parts Attached 13 | 5 8 Power 2 | 1 1 Engine 2 | 1 1 Core . | . . Reactor . | . . Propulsion 2 | 1 1 Treads . | . . Leg . | . . Wheel 1 | 1 . Hover . | . . Flight 1 | . 1 Utility 3 | 1 2 Device 1 | 1 . Storage . | . . Processor . | . . Hackware . | . . Protection 2 | . 2 Artifact . | . . Weapon 6 | 2 4 Energy Gun 1 | 1 . Energy Cannon . | . . Ballistic Gun 2 | 1 1 Ballistic Cannon . | . . Launcher . | . . Special Weapon 2 | . 2 Impact Weapon . | . . Slashing Weapon . | . . Piercing Weapon . | . . Special Melee Weapon 1 | . 1 Unidentified Prototypes . | . . Parts Lost 2 | . 2 Power 1 | . 1 Propulsion . | . . Utility 1 | . 1 Weapon . | . . Highest Loss Streak 2 | . 2 To Critical Strikes . | . . Average Backups . | . . Power . | . . Propulsion . | . . Utility . | . . Weapon . | . . Tool/Special . | . . Unused Backups . | . . Power . | . . Propulsion . | . . Utility . | . . Weapon . | . . Tool/Special . | . . Average Slot Usage (%) 84 | . 84 Engine 18 | . 18 Wheel 8 | . 8 Flight 11 | . 11 Device 1 | . 1 Protection 13 | . 13 Energy Gun 10 | . 10 Ballistic Gun 9 | . 9 Special Weapon 6 | . 6 Special Melee Weapon 3 | . 3 Peak Build Rating 5 | 4 5 Average Rating 4 | 2 4 On Entrance 2 | . 4 Avg Prop Armor Cover (%) . | . . Naked Turns . | . . Heaviest Build 7 | 5 7 Greatest Support 15 | 15 15 Greatest Overweight (x) . | . . Average Overweight (x) . | . . Largest Inventory Capacity . | . . Average Capacity . | . . Most Carried . | . . Average Carried . | . . Final Capacity . | . . Final Carried . | . . Class Distribution -------------------- 69% | Mutant 30% | Scavenger-Mutant Dominant Class ---------------- Mutant | -10/Materials Resources | -11 -10 ----------- Run | Yrd Mat Matter Collected 507 | 256 251 Remotely . | . . Salvage Created 1474 | 222 1252 Parts 122 | 23 99 Haulers Intercepted 2 | . 2 Recyclers Shooed 2 | 1 1 Parts Field Recycled . | . . Retrieved Matter . | . . Parts Self-Destructed . | . . Prevented . | . . Parts Restored . | . . Kills | -11 -10 ------- Run | Yrd Mat Combat Hostiles Destroyed 17 | . 17 Guns 15 | . 15 Cannons 2 | . 2 Classes Destroyed 9 | 3 6 Worker 16 | 2 14 Builder 5 | . 5 Tunneler 8 | 5 3 Hauler 2 | . 2 Recycler 4 | 1 3 Operator 1 | . 1 Watcher 1 | . 1 Swarmer 5 | . 5 Grunt 12 | . 12 Best Kill Streak 11 | 2 11 Combat Bots Only 5 | . 5 Max Kills in Single Turn 2 | 1 2 Gunslinging . | . . Exploded . | . . Melee . | . . Uniques/NPCs Destroyed . | . . Combat | -11 -10 -------- Run | Yrd Mat Hostile Shots Fired 195 | . 195 Missed 61 | . 61 Hits 134 | . 134 Projectile 134 | . 134 Critical Strikes 1 | . 1 Damage Taken 1481 | . 1481 Core 1137 | . 1137 Absorbed by Shields . | . . Redirected to Core 704 | . 704 Redirected to Shielding 45 | . 45 Regen/Repaired (Parts) 25 | . 25 Core Remaining (%) 100 | 100 . Volleys Fired 385 | 29 356 Largest 2 | 1 2 Hottest 120 | 40 120 Shots Fired 451 | 29 422 Gun 395 | 29 366 Cannon . | . . Launcher . | . . Special 56 | . 56 Kinetic 192 | 6 186 Thermal 259 | 23 236 Explosive . | . . Electromagnetic . | . . Robot Hit Streak 13 | 8 13 Robot Miss Streak 8 | 1 8 Penetration Max . | . . Secondary Targets . | . . Shots Hit Robots 216 | 22 194 Core Hits 90 | 10 80 Critical Kills . | . . Critical Parts Destroyed . | . . Critical Strikes . | . . Melee Attacks 44 | . 44 Impact . | . . Slashing . | . . Piercing . | . . Sneak Attacks 4 | . 4 Combat Hostiles . | . . Follow-up Attacks . | . . Damage Inflicted 2258 | 232 2026 Guns 1939 | 232 1707 Cannons . | . . Explosions . | . . Melee . | . . Ramming 7 | . 7 Kinetic 746 | 30 716 Thermal 1505 | 202 1303 Explosive . | . . Electromagnetic . | . . Impact . | . . Slashing . | . . Piercing . | . . Highest Corruption . | . . Average Corruption . | . . Corruption Purged . | . . Corruption Blocked . | . . Overload Shots . | . . Overflow Damage . | . . Projectiles . | . . Explosions . | . . Melee . | . . Knockbacks . | . . Impact . | . . Kinetic . | . . Secondary . | . . Self-Inflicted Damage 3 | . 3 Shots . | . . Rammed 3 | . 3 Targets Rammed 3 | . 3 Kicked . | . . Crushed . | . . Highest Temperature 227 | . 227 Average Temperature 51 | . 51 Received Heat Transfer 585 | . 585 Effects 1 | . 1 Interference 1 | . 1 Siege Activations . | . . Martial Activations . | . . Shielding Activations . | . . Robots Disrupted . | . . Combat Hostiles . | . . Robots Corrupted . | . . Combat Hostiles . | . . Parts Fried . | . . Impact Corruptions . | . . Robots Melted . | . . Combat Hostiles . | . . Parts Melted 4 | 1 3 Heat Transferred 3350 | 450 2900 Parts Sabotaged . | . . Parts Stolen . | . . Parts Stripped . | . . Power Chain Reactions . | . . Alert | -11 -10 ------- Run | Yrd Mat Maximum Alert Level 1 | . 1 Low Security (%) 99 | 100 99 Level 1 . | . . Level 2 . | . . Level 3 . | . . Level 4 . | . . Level 5 . | . . High Security . | . . Max Security . | . . Peak Influence 202 | 10 202 Initial 3 | . 3 Average 88 | 1 99 Influence Increases 688 | 40 648 Destroy 0b10 Robot/C 340 | . 340 Destroy 0b10 Robot/NC 185 | 40 145 Destroy Leader 106 | . 106 Successful Hack 35 | . 35 Disable Machine 15 | . 15 Destroy Structure 7 | . 7 Influence Decreases 497 | 35 462 Entered New Map 2 | . 2 Time Decay 475 | 35 440 Lost Part 20 | . 20 Squads Dispatched 7 | . 7 Investigation 4 | . 4 Extermination . | . . Reinforcement 3 | . 3 Assault . | . . Garrison . | . . Intercept . | . . Searches Triggered . | . . Construction Impeded . | . . Haulers Reinforced . | . . Active Scanning Responses . | . . Cargo Convoy Interrupts . | . . Stealth | -11 -10 --------- Run | Yrd Mat Distress Signals 2 | . 2 Communications Jammed . | . . Distress Signals . | . . Times Spotted 34 | . 34 Peak Tracking Total 8 | . 8 Tactical Retreats . | . . Traps | -11 -10 ------- Run | Yrd Mat Traps Triggered 1 | . 1 Indirectly . | . . Trap Hack Attempts . | . . Triggered . | . . Disarmed . | . . Reprogrammed . | . . Reused . | . . Traps Extracted . | . . Installed . | . . Triggered . | . . Machines | -11 -10 ---------- Run | Yrd Mat Machines Disabled 1 | . 1 Max in Single Turn 1 | . 1 Machines Repaired . | . . Machines Dismantled . | . . Machines Sabotaged . | . . Overloaded Fab Kills . | . . Hacking | -11 -10 --------- Run | Yrd Mat Machines Accessed 4 | . 4 Terminals 3 | . 3 Fabricators . | . . Repair Stations 1 | . 1 Recycling Units . | . . Scanalyzers . | . . Garrison Access . | . . Total Hacks 14 | . 14 Successful 7 | . 7 Failed 7 | . 7 Catastrophic 2 | . 2 Database Lockouts . | . . Manual 1 | . 1 Terminals 13 | . 13 Fabricators . | . . Repair Stations 1 | . 1 Recycling Units . | . . Scanalyzers . | . . Garrison Access . | . . Terminal Hacks 6 | . 6 Record 3 | . 3 Robot Analysis 1 | . 1 Prototype ID Bank 1 | . 1 Branch Access Points 1 | . 1 Fabricator Hacks . | . . Repair Station Hacks . | . . Recycling Unit Hacks . | . . Scanalyzer . | . . Garrison Access Hacks . | . . Unauthorized Hacks 1 | . 1 Terminals . | . . Fabricators . | . . Repair Stations 1 | . 1 Patch 1 | . 1 Recycling Units . | . . Scanalyzers . | . . Garrison Access . | . . Data Cores Recovered . | . . Used . | . . Hacking Detections 3 | . 3 Full Trace Events 3 | . 3 Feedback Events . | . . Feedback Blocked . | . . Robot Schematics Acquired . | . . Robots Built . | . . Authchips . | . . Time . | . . Total Robot Build Rating . | . . Part Schematics Acquired . | . . Parts Built . | . . Authchips . | . . Time . | . . Total Part Build Rating . | . . Part Studies Acquired . | . . Parts Repaired . | . . Time . | . . Parts Recycled . | . . Recycled Matter . | . . Retrieved Matter . | . . Retrieved Components . | . . Parts Scanalyzed . | . . Part Schematics Acquired . | . . Parts Damaged . | . . Bothacking | -11 -10 ------------ Run | Yrd Mat Used RIF Installer . | . . Robots Hacked 3 | . 3 Non-combat 2 | . 2 Combat 1 | . 1 Robot Hacks Applied 5 | . 5 parse_system 3 | . 3 no_distress 1 | . 1 check_alert 1 | . 1 Relay Couplers Released . | . . Fabnet Peak Effective % . | . . Robots Rewired . | . . Allies Hacked . | . . Hacks Repelled . | . . Allies | -11 -10 -------- Run | Yrd Mat Total Allies . | . . Largest Group . | . . Highest-Rated Group . | . . Highest-Rated Ally . | . . Total Orders . | . . Ally Attacks . | . . Total Damage . | . . Kills . | . . Allies Corrupted . | . . Allies Melted . | . . Intel | -11 -10 ------- Run | Yrd Mat Active Infowar (turns) 139 | 57 82 Seismic 139 | 57 82 Robot Analysis Total 1 | . 1 Derelict Logs Recovered . | . . Drone Launches . | . . Drone Recoveries . | . . Exploration | -11 -10 ------------- Run | Yrd Mat Turns Passed 1526 | 173 1353 Spaces Moved 968 | 136 832 Core 2 | 2 . Treads . | . . Legs . | . . Wheels 324 | 134 190 Hover . | . . Flight 642 | . 642 Fastest Speed 40 | 50 40 Average Speed 53 | 79 49 Slowest Speed 80 | 80 80 Overloaded Moves . | . . Propulsion Burnouts . | . . Robots Hopped 1 | . 1 Potential Cave-ins . | . . Cave-ins Triggered . | . . Exploration Rate (%) 43 | 5 82 Regions Visited 1 Branch Regions . Pre-discovered Areas . | . . Known Exits Taken . | . . Unknown Exits Taken 1 | 1 . Scrap Searched . | . . Spaces Dug . | . . Terrain Destroyed 6 | . 6 Melee . | . . Projectile 6 | . 6 AOE . | . . Terrain Rammed . | . . Walls Destroyed . | . . Machines Disabled . | . . Actions | -11 -10 --------- Run | Yrd Mat Total 1455 | 170 1285 Wait 21 | . 21 Move 965 | 135 830 Hop 1 | . 1 Pick Up . | . . Fast Attach 13 | 5 8 Attach . | . . Detach . | . . Swap . | . . Drop 6 | 1 5 Fire 385 | 29 356 Melee 44 | . 44 Ram 3 | . 3 Kick . | . . Crush . | . . Escape Stasis . | . . Rewire . | . . Trap . | . . Miscellaneous 17 | . 17 Route ------- -11/Scrapyard -10/Materials (discovered 4 exits: [*Mat x3] / *Min) History --------- Turn | Location | Event 5 | -11/Scrapyard | Discovered new exit (range 17) 174 | -11/Scrapyard | Entered Materials 315 | -10/Materials | Build established: Mutant 602 | -10/Materials | Core integrity fell below 50% 702 | -10/Materials | Reached level 2 704 | -10/Materials | Upgraded with Utility slot (x1) 704 | -10/Materials | Upgraded with Weapon slot (x1) 864 | -10/Materials | Discovered new exit (range 14) 1110 | -10/Materials | Build established: Scavenger-Mutant 1116 | -10/Materials | Discovered new exit (range 17) 1257 | -10/Materials | Identified exit to Mines 1425 | -10/Materials | Core integrity fell below 20% 1463 | -10/Materials | Discovered new exit (range 8) 1527 | -10/Materials | Destroyed by G-34 Mercenary with Small Laser Last Messages --------------- >>parse_system Reading system data... 01430_ G-34 Mercenary destroyed. 01446_ Acquired 26 matter. 01449_ Fusion Modulator explodes. 01449_ Acquired 1 matter. 01449_ K-01 Serf destroyed. 01449_ W-16 Scout destroyed. 01451_ K-01 Serf collects debris. 01463_ EXIT=FOUND 01510_ R-06 Scavenger destroyed. 01513_ Connecting with Repair Station... [Achievement: Brute Force] >>Force(Patch) PATCHED[Lgt. Ion Engine] PATCHED[Weapon Shielding] PATCHED[Flight Unit] [Achievement: Tune-up] 01513_ ALERT: Suspicious activity at Repair Station M001. Dispatching Investigation squad. Map ----- +----------------------------------------------------+ | # ## ###????####### ### | | #""" | ## ########""#""#! ##" | | #""" ## =%% ##T """ | | #""" #########"""""""!*% ##" """ | | # #??######" "= ### """ | | ########??# " " #?# | | ??????????# " " * ### % * | | ??????????# " =" %"%% ### | | ?##########""" " ="*= ### % | | ?# T #"" " "= #?# % % | | ?# #""" !"""""""" ### ##### | | ?# # "" # #???# | | ?# #?""??# #???# | | ?# #?????# !=* #???# | | ?# """ #?????+ !%##############???# | | ?# """ #?????# ==#????????????????# | | ?# """ #?????# #????????????????# | | ?# #????## #????????????????# | | ?#####+######### #????????????????# | | ????# ## #????????????????# | | ????# ## < +????????????????? | | ????# ## #???????????###### | | ????# #### g #???????????# | | ????# #??# ***##???????????# | | ????# #??# ** #????????????# | | ????# #??#"""@ ** #?#####??????# | | ????# #??#"R # #??????# | | ????# #??#""" #??????## # | | ????# #??# = #???????# # | | ????# #??# #???????# # | | ????# #??# ##### #???????# # | | ????# #??# ##????#^ ^##???????# # | | ????# #??# #?????? #????????# # | | ????# #### #?????? #????????# # | | ????# #??????? #?????#### # | | ????# ##### ##????????#????##% # | | ????# #?## ##????????????#% # | | ????# #?# #????????????#% + | | ????# #?# #????????????#% # | | ????# ### > #????????????#% < # | | ????# + #????????????##% # | | ????# ###"" ""#?????????????######## | | ????# #?##"!!!"##????????????????????? | | ????# #??##"""##?????????????????????? | | ????####???#####??????????????????????? | | ??????????????????????????????????????? | | ??????????????????????????????????????? | | ??????????????????????????????????????? | | ??????????????????????????????????????? | | ??????????????????????????????????????? | +----------------------------------------------------+ Best States ------------- Heat Dissipation 31 Energy Generation 15 Energy Capacity 125 Matter Stores 300 Matter Capacity 300 Sight Range 17 Robot Scan Range 2 Terrain Scan Density 110 Armor Coverage 150 Weapon Shielding 33 Evasion (%) 62 Item Schematics ----------------- None Robot Schematics ------------------ None Fabricated ------------ Nothing Repaired ---------- Nothing Studied --------- None Alien Tech Used ----------------- None Achievements -------------- Brute Force Junior Dev Tune-up Challenges ------------ None RPGLIKE | -11 -10 --------- Run | Yrd Mat Levels Raised 1 | . 1 XP Earned 5450 | 3000 2450 XP Spent 4455 | 3000 1455 Upgrades 17 | 10 7 Utility Slot 1 | . 1 Weapon Slot 1 | . 1 Core Integrity 3 | . 3 Heat Dissipation 1 | . 1 Energy Generation 1 | . 1 Mass Support 1 | 1 . Sight Range 1 | 1 . Sensor Range 1 | 1 . Terrain Scan Density 1 | 1 . Melee Accuracy 6 | 6 . Protomatter Created 118 | . 118 Integrity Restored 387 | . 387 Core 387 | . 387 Protomatter Decayed 15 | . 15 Game ------ Seed PulseTimingActivator Manual? 0 Play Time 00:35:47 Cumulative 9.5 hours Start 2026.02.13 @ 16:52:07 End 2026.02.13 @ 17:31:13 Sessions 1 Manual Loads 0 Difficulty Rogue Special Mode Winter2019/RPGLIKE Game No. 6 Rogue 6 Adventurer 0 Explorer 0 Win Type - Total 0 Types 0/0/0/0/0/0/0/0/0/0 Lore% 7 Gallery% 8 Achievement% 12 Wizard Run 0 Options --------- Layout 1 ASCII 0 Keyboard 0 Movement Mouse Keybinds 0 Fullscreen 1 Font 32/SmallcapsGlow Map View 50x40 Zoom Use 0% Tactical HUD 1 Map Filters NONE Filters NONE Steam 1 RUN: a4a29650-0b69-43f1-ae3f-9bcebf29acfe